Cogmind - Beta 13 @@@ ROGUE MODE // 2024.05.23 @ 20:49:45 Player: Sunsh1n3 Result: Destroyed by H-55 Commando with Gauss Rifle Performance ------------- Evolutions (2) 1000 Regions Visited (4) 800 Robots Destroyed (39) 195 Value Destroyed (915) 915 Prototype IDs (0) 0 Alien Tech Used (0) 0 Bonus (0) 0 TOTAL SCORE: 2910 Bonus ------- None Cogmind --------- Core Integrity 0/550 Matter 151/300 Energy 121/125 System Corruption 8% Temperature Warm (107) Movement Core (150) Ox2 Location -8/Materials Parts ------- > --- POWER (1) -------- Light Ion Engine > --- PROPULSION (4) --- (None) > --- UTILITY (2) ------ (None) > --- WEAPON (4) ------- Light Assault Rifle Assault Cannon > --- INVENTORY (5) ---- Visual Processing Unit Peak State ------------ > --- POWER ------------ Light Deuterium Engine > --- PROPULSION ------- Aluminum Leg Aluminum Leg VSS Leg VSS Leg > --- UTILITY ---------- Improved Heat Sink Small Storage Unit > --- WEAPON ----------- Beam Rifle Light Assault Rifle Light Assault Rifle High-powered Shotgun > --- INVENTORY -------- Light Ion Engine Aluminum Leg Aluminum Leg Visual Processing Unit Light Armor Plating Particle Gun Grenade Launcher Grenade Launcher [Rating: 23] Favorites ----------- Power Ion Engine Engine Ion Engine Propulsion Aluminum Leg Leg Aluminum Leg Utility Small Storage Unit Device Improved Heat Sink Storage Small Storage Unit Protection Light Armor Plating Weapon Light Assault Rifle Energy Gun Medium Laser Ballistic Gun Light Assault Rifle Ballistic Cannon Assault Cannon Launcher Grenade Launcher Build | -11 -10 -9 -9 -8 ------- Run | Yrd Mat Mat Min Mat Slots Evolved 4 | . . 2 . 2 Power . | . . . . . Propulsion 2 | . . 2 . . Utility . | . . . . . Weapon 2 | . . . . 2 Parts Attached 47 | 4 5 12 . 26 Power 5 | 1 . 1 . 3 Engine 5 | 1 . 1 . 3 Core . | . . . . . Reactor . | . . . . . Propulsion 19 | 2 3 5 . 9 Treads . | . . . . . Leg 19 | 2 3 5 . 9 Wheel . | . . . . . Hover . | . . . . . Flight . | . . . . . Utility 6 | 1 . 2 . 3 Device 2 | . . . . 2 Storage 1 | 1 . . . . Processor . | . . . . . Hackware . | . . . . . Protection 3 | . . 2 . 1 Artifact . | . . . . . Weapon 17 | . 2 4 . 11 Energy Gun 5 | . 1 2 . 2 Energy Cannon . | . . . . . Ballistic Gun 9 | . 1 2 . 6 Ballistic Cannon 1 | . . . . 1 Launcher 2 | . . . . 2 Special Weapon . | . . . . . Impact Weapon . | . . . . . Slashing Weapon . | . . . . . Piercing Weapon . | . . . . . Special Melee Weapon . | . . . . . Unidentified Prototypes . | . . . . . Parts Lost 24 | . . . . 24 Power 2 | . . . . 2 Propulsion 10 | . . . . 10 Utility 3 | . . . . 3 Weapon 9 | . . . . 9 Highest Loss Streak 16 | . . . . 16 To Critical Strikes . | . . . . . Average Slot Usage (%) 86 | . 85 98 100 82 Engine 10 | . 14 11 11 7 Leg 32 | . 28 43 44 30 Device 1 | . . . . 2 Storage 10 | . 14 11 11 9 Protection 4 | . . 10 11 5 Energy Gun 10 | . 14 11 11 8 Ballistic Gun 14 | . 14 11 11 17 Naked Turns . | . . . . . Heaviest Build 21 | 10 13 17 17 21 Greatest Support 44 | 20 20 40 40 44 Greatest Overweight (x) 3 | 3 . 1 . . Average Overweight (x) . | . . . . . Largest Inventory Capacity 8 | 8 8 8 8 8 Average Capacity 7 | 7 8 8 8 7 Most Carried 8 | 6 8 8 7 8 Average Carried 6 | 3 7 7 7 5 Final Capacity 8 | 8 8 8 8 5 Final Carried 8 | 6 8 7 7 1 Class Distribution -------------------- 41% | Mutant 31% | Scavenger-Mutant 16% | Scavenger-Tank 10% | Scavenger-Gunner Dominant Class ---------------- Mutant | -10/Materials Scavenger-Mutant | -9/Materials Scavenger-Mutant | -9/Mines Scavenger-Tank | -8/Materials Resources | -11 -10 -9 -9 -8 ----------- Run | Yrd Mat Mat Min Mat Matter Collected 653 | 216 109 83 . 245 Remotely . | . . . . . Salvage Created 1132 | . 409 208 . 515 Parts 93 | . 32 18 . 43 Haulers Intercepted 1 | . 1 . . . Recyclers Shooed 1 | . 1 . . . Parts Field Recycled . | . . . . . Retrieved Matter . | . . . . . Parts Self-Destructed . | . . . . . Prevented . | . . . . . Kills | -11 -10 -9 -9 -8 ------- Run | Yrd Mat Mat Min Mat Combat Hostiles Destroyed 33 | . 10 7 . 16 Guns 31 | . 10 7 . 14 AOE 2 | . . . . 2 Classes Destroyed 10 | . 5 1 . 4 Builder 1 | . . . . 1 Tunneler 1 | . . . . 1 Hauler 1 | . 1 . . . Recycler 1 | . 1 . . . Watcher 2 | . 1 1 . . Swarmer 18 | . 6 5 . 7 Grunt 10 | . 4 . . 6 Sentry 2 | . . 2 . . Specialist 2 | . . . . 2 Heavy 1 | . . . . 1 Best Kill Streak 8 | . 7 5 . 8 Combat Bots Only 7 | . 6 5 . 7 Max Kills in Single Turn 2 | . 1 1 . 2 Gunslinging . | . . . . . Exploded 1 | . . . . 1 Melee . | . . . . . Uniques/NPCs Destroyed . | . . . . . Combat | -11 -10 -9 -9 -8 -------- Run | Yrd Mat Mat Min Mat Hostile Shots Fired 259 | . 38 47 . 174 Missed 85 | . 11 17 . 57 Damage Taken 2880 | . 250 297 . 2333 Core 634 | . 36 48 . 550 Absorbed by Shields . | . . . . . Core Remaining (%) 91 | 100 85 . 88 . Volleys Fired 113 | . 38 12 . 63 Largest 4 | . 2 2 . 4 Hottest 161 | . 70 70 . 161 Shots Fired 262 | . 76 24 . 162 Gun 255 | . 76 24 . 155 Cannon 3 | . . . . 3 Launcher 4 | . . . . 4 Special . | . . . . . Kinetic 157 | . 38 12 . 107 Thermal 101 | . 38 12 . 51 Explosive 4 | . . . . 4 Electromagnetic . | . . . . . Robot Hit Streak 11 | . 10 8 . 11 Robot Miss Streak 4 | . 3 2 . 4 Penetration Max . | . . . . . Secondary Targets 7 | . 2 4 . 1 Max Gunslinging Chain 1 | . 1 1 . 1 Shots Hit Robots 175 | . 52 15 . 108 Core Hits 79 | . 25 11 . 43 Critical Kills 2 | . . 1 . 1 Critical Parts Destroyed . | . . . . . Critical Strikes 8 | . 4 1 . 3 Burn 6 | . 4 . . 2 Destroy 2 | . . 1 . 1 Melee Attacks . | . . . . . Impact . | . . . . . Slashing . | . . . . . Piercing . | . . . . . Sneak Attacks . | . . . . . Combat Hostiles . | . . . . . Follow-up Attacks . | . . . . . Damage Inflicted 2163 | . 562 171 . 1430 Guns 1959 | . 562 171 . 1226 Cannons 25 | . . . . 25 Explosions 179 | . . . . 179 Melee . | . . . . . Ramming . | . . . . . Kinetic 994 | . 186 70 . 738 Thermal 990 | . 376 101 . 513 Explosive 179 | . . . . 179 Electromagnetic . | . . . . . Impact . | . . . . . Slashing . | . . . . . Piercing . | . . . . . Highest Corruption 8 | . . . . 8 Average Corruption 5 | . . . . 5 Corruption Purged . | . . . . . Corruption Blocked . | . . . . . Effects 11 | . . . . 11 Message Errors 3 | . . . . 3 Matter Fused 1 | . . . . 1 Heat Flow Errors 1 | . . . . 1 Energy Discharges 3 | . . . . 3 Data Loss (minor) 1 | . . . . 1 Misfires 1 | . . . . 1 Weapon Failures 1 | . . . . 1 Overload Shots . | . . . . . Overflow Damage 6 | . . . . 6 Projectiles . | . . . . . Explosions 6 | . . . . 6 Melee . | . . . . . Knockbacks . | . . . . . Impact . | . . . . . Kinetic . | . . . . . Secondary . | . . . . . Self-Inflicted Damage 42 | . . . . 42 Shots 2 | . . . . 2 Rammed . | . . . . . Targets Rammed . | . . . . . Kicked . | . . . . . Crushed . | . . . . . Highest Temperature 443 | . 202 108 . 443 Average Temperature 87 | . 68 39 . 112 Received Heat Transfer 615 | . 66 27 . 522 Siege Activations . | . . . . . Robots Corrupted . | . . . . . Combat Hostiles . | . . . . . Parts Fried . | . . . . . Impact Corruptions . | . . . . . Robots Melted . | . . . . . Combat Hostiles . | . . . . . Parts Melted 4 | . . . . 4 Heat Transferred 3108 | . 1406 296 . 1406 Parts Sabotaged . | . . . . . Parts Stolen . | . . . . . Parts Stripped . | . . . . . Power Chain Reactions . | . . . . . Alert | -11 -10 -9 -9 -8 ------- Run | Yrd Mat Mat Min Mat Peak Influence 343 | . 288 343 133 332 Initial 133 | . . 121 133 51 Average 165 | . 147 211 133 187 Maximum Alert Level 1 | . 1 1 . 1 Low Security (%) 58 | 100 65 40 100 52 Level 1 41 | . 34 59 . 47 Level 2 . | . . . . . Level 3 . | . . . . . Level 4 . | . . . . . Level 5 . | . . . . . High Security . | . . . . . Max Security . | . . . . . Squads Dispatched 5 | . 1 1 . 3 Investigation . | . . . . . Extermination . | . . . . . Reinforcement 5 | . 1 1 . 3 Assault . | . . . . . Garrison . | . . . . . Intercept . | . . . . . Searches Triggered . | . . . . . Construction Impeded . | . . . . . Haulers Reinforced . | . . . . . Active Scanning Responses . | . . . . . Cargo Convoy Interrupts . | . . . . . Stealth | -11 -10 -9 -9 -8 --------- Run | Yrd Mat Mat Min Mat Distress Signals 4 | . 1 1 . 2 Communications Jammed . | . . . . . Distress Signals . | . . . . . Times Spotted 49 | . 14 13 . 22 Peak Tracking Total 8 | . 5 8 . 5 Tactical Retreats 1 | . . 1 . . Traps | -11 -10 -9 -9 -8 ------- Run | Yrd Mat Mat Min Mat Traps Triggered 5 | . . 1 . 4 Indirectly . | . . . . . Trap Hack Attempts . | . . . . . Triggered . | . . . . . Disarmed . | . . . . . Reprogrammed . | . . . . . Reused . | . . . . . Traps Extracted . | . . . . . Installed . | . . . . . Triggered . | . . . . . Machines | -11 -10 -9 -9 -8 ---------- Run | Yrd Mat Mat Min Mat Machines Disabled . | . . . . . Max in Single Turn . | . . . . . Machines Repaired . | . . . . . Machines Dismantled . | . . . . . Machines Sabotaged . | . . . . . Overloaded Fab Kills . | . . . . . Hacking | -11 -10 -9 -9 -8 --------- Run | Yrd Mat Mat Min Mat Machines Accessed 1 | . 1 . . . Terminals 1 | . 1 . . . Fabricators . | . . . . . Repair Stations . | . . . . . Recycling Units . | . . . . . Scanalyzers . | . . . . . Garrison Access . | . . . . . Total Hacks 2 | . 2 . . . Successful 2 | . 2 . . . Failed . | . . . . . Catastrophic . | . . . . . Database Lockouts . | . . . . . Manual . | . . . . . Terminals 2 | . 2 . . . Fabricators . | . . . . . Repair Stations . | . . . . . Recycling Units . | . . . . . Scanalyzers . | . . . . . Garrison Access . | . . . . . Terminal Hacks 2 | . 2 . . . Locate Traps 1 | . 1 . . . Zone Layout 1 | . 1 . . . Fabricator Hacks . | . . . . . Repair Station Hacks . | . . . . . Recycling Unit Hacks . | . . . . . Scanalyzer . | . . . . . Garrison Access Hacks . | . . . . . Unauthorized Hacks . | . . . . . Terminals . | . . . . . Fabricators . | . . . . . Repair Stations . | . . . . . Recycling Units . | . . . . . Scanalyzers . | . . . . . Garrison Access . | . . . . . Data Cores Recovered . | . . . . . Used . | . . . . . Hacking Detections . | . . . . . Full Trace Events . | . . . . . Feedback Events . | . . . . . Feedback Blocked . | . . . . . Robot Schematics Acquired . | . . . . . Robots Built . | . . . . . Authchips . | . . . . . Time . | . . . . . Total Robot Build Rating . | . . . . . Part Schematics Acquired . | . . . . . Parts Built . | . . . . . Authchips . | . . . . . Time . | . . . . . Total Part Build Rating . | . . . . . Parts Repaired . | . . . . . Time . | . . . . . Parts Recycled . | . . . . . Recycled Matter . | . . . . . Retrieved Matter . | . . . . . Retrieved Components . | . . . . . Parts Scanalyzed . | . . . . . Part Schematics Acquired . | . . . . . Parts Damaged . | . . . . . Bothacking | -11 -10 -9 -9 -8 ------------ Run | Yrd Mat Mat Min Mat Used RIF Installer . | . . . . . Robots Hacked . | . . . . . Non-combat . | . . . . . Combat . | . . . . . Robot Hacks Applied . | . . . . . Relay Couplers Released . | . . . . . Fabnet Peak Effective % . | . . . . . Robots Rewired . | . . . . . Allies Hacked . | . . . . . Hacks Repelled . | . . . . . Allies | -11 -10 -9 -9 -8 -------- Run | Yrd Mat Mat Min Mat Total Allies . | . . . . . Largest Group . | . . . . . Highest-Rated Group . | . . . . . Highest-Rated Ally . | . . . . . Total Orders . | . . . . . Ally Attacks . | . . . . . Total Damage . | . . . . . Kills . | . . . . . Allies Corrupted . | . . . . . Allies Melted . | . . . . . Intel | -11 -10 -9 -9 -8 ------- Run | Yrd Mat Mat Min Mat Robot Analysis Total . | . . . . . Derelict Logs Recovered . | . . . . . Drone Launches . | . . . . . Drone Recoveries . | . . . . . Exploration | -11 -10 -9 -9 -8 ------------- Run | Yrd Mat Mat Min Mat Turns Passed 925 | 60 270 152 26 417 Spaces Moved 417 | 40 117 77 22 161 Core 6 | 6 . . . . Treads . | . . . . . Legs 411 | 34 117 77 22 161 Wheels . | . . . . . Hover . | . . . . . Flight . | . . . . . Fastest Speed 50 | 50 120 120 120 90 Average Speed 118 | 117 120 121 120 114 Slowest Speed 200 | 200 120 190 120 120 Overloaded Moves . | . . . . . Propulsion Burnouts . | . . . . . Robots Hopped . | . . . . . Cave-ins Triggered 1 | . . . . 1 Exploration Rate (%) 14 | 4 28 16 6 16 Regions Visited 4 Branch Regions 1 Pre-discovered Areas . | . . . . . Known Exits Taken . | . . . . . Unknown Exits Taken 4 | 1 1 1 1 . Scrap Searched . | . . . . . Spaces Dug . | . . . . . Terrain Destroyed 12 | . . . . 12 Melee . | . . . . . Projectile 1 | . . . . 1 AOE 11 | . . . . 11 Terrain Rammed . | . . . . . Walls Destroyed . | . . . . . Machines Disabled . | . . . . . Actions | -11 -10 -9 -9 -8 --------- Run | Yrd Mat Mat Min Mat Total 657 | 53 181 112 21 290 Wait 36 | . 9 2 . 25 Move 413 | 39 116 76 21 161 Hop . | . . . . . Pick Up 32 | 10 7 6 . 9 Fast Attach 8 | . . 2 . 6 Attach 24 | 4 2 4 . 14 Detach . | . . . . . Swap 15 | . 3 6 . 6 Drop 16 | . 6 4 . 6 Fire 113 | . 38 12 . 63 Melee . | . . . . . Ram . | . . . . . Kick . | . . . . . Crush . | . . . . . Escape Stasis . | . . . . . Rewire . | . . . . . Trap . | . . . . . Miscellaneous . | . . . . . Route ------- -11/Scrapyard -10/Materials -9/Materials -9/Mines -8/Materials History --------- Turn | Location | Event 2 | -11/Scrapyard | Discovered new exit (range 16) 61 | -11/Scrapyard | Entered Materials 303 | -10/Materials | Build established: Mutant 304 | -10/Materials | Discovered new exit (range 16) 331 | -10/Materials | Entered another Materials area 331 | -9/Materials | Evolved 2 slots: Propulsion x2 427 | -9/Materials | Discovered new exit (range 14) 483 | -9/Materials | Entered Mines 494 | -9/Mines | Discovered new exit (range 9) 509 | -9/Mines | Entered Materials 509 | -8/Materials | Evolved 2 slots: Weapon x2 773 | -8/Materials | Destroyed 7 combat bots 853 | -8/Materials | Core integrity fell below 50% 875 | -8/Materials | Lost 16 parts (2p7n1u6w) 906 | -8/Materials | Crushed by falling debris 909 | -8/Materials | Core integrity fell below 20% 926 | -8/Materials | Destroyed by H-55 Commando with Gauss Rifle Last Messages --------------- 00900_ U-05 Engineer lays Concrete. 00902_ System corrupted: Heat flow error (+299). 00902_ U-05 Engineer lays Concrete. 00905_ Penetrated by Slug. 00906_ The unstable cave ceiling collapses. 00906_ Crushed by falling debris. 00906_ Lgt. Assault Rifle destroyed. 00906_ System corrupted by crushing effect (+1). 00906_ Aluminum Leg destroyed. 00906_ System corrupted by crushing effect (+1). 00906_ U-05 Engineer builds a Wall. 00908_ Penetrated by Slug. 00918_ Acquired Assault Cannon. 00920_ VSS Leg destroyed. 00920_ Sml. Storage Unit destroyed. 00921_ System corrupted: Component data lost. 00921_ Lgt. Armor Plating destroyed. 00923_ G-47 Trooper destroyed. 00923_ VSS Leg destroyed. 00926_ Penetrated by Slug. Map ----- +----------------------------------------------------+ | ?????????????????????????????????????????????????? | | ?????????????????????????????????????????????????? | | ?????????????????????????????????????????????????? | | ?????????????????????????????????????????????????? | | ?????????????????????????????????????????????????? | | ?????????????????????????????????????????????????? | | ?????????????????????????????????????????????????? | | ?????????????????????????????????????????????????? | | ?????????????????????????????????????????????????? | | ???????????????????? ???????????????????????????? | | ???????????????????# ???????????????????????????? | | ???????????????????# """????????????????????????? | | ???????????????????#! ""?????????????????????????? | | ???????????????????# ?????????????????????????? | | ???????????????????# ?????????????????????????? | | ???????????????????/ ?????????????????????????? | | ???????????????????# ?????????????????????????? | | ???????????????????# #?????????????????????????? | | ???????????????????# #?????????????????????????? | | ???????????????????# #?????????????????????????? | | ???????????????????# #?????????????????????????? | | ???????????????????# #?????????????????????????? | | ???????????????????# #?????????????????????????? | | ?????????????????### #?????????????????????????? | | ?????????????????# ##########????????????????? | | ?????????????????## # @ #????????????????? | | ??????????????????# % #l #????????????????? | | ??????############# #%h #????????????????? | | ?????# g [#????#######?????? | | ?????# """ #????# ??????? | | ?????# % = """" #????# ??????? | | ??????? ###+###### # """" #????# ???????? | | ??????????????????# = """" #????# ???????? | | ??????????????????## a# """ #????? "????????? | | ???????????????????#|=!############### ????????? | | ???????????????????# ##+######+### | | ???????????????????# =* *%= | | ???????????????????# ^ * #######+##### | | ???????????????????#######+########+###### #? | | ?????????????????????#" # % ! #""" #? | | ??????????????????????" # """ % #""" #? | | ??????????????????????" # """"" ! #""" ## | | ??????????????????????# # """"" ! +% + | | ??????????????????????# # """"" *#% ## | | ??????????????????????# # """ = *########? | | ??????????????????????######## #???????? | | ?????????????????????????????#############???????? | | | | | | | +----------------------------------------------------+ Best States ------------- Heat Dissipation 45 Energy Generation 14 Energy Capacity 250 Matter Stores 300 Matter Capacity 300 Sight Range 16 Terrain Scan Density 10 Armor Coverage 150 Evasion (%) 55 Item Schematics ----------------- None Robot Schematics ------------------ None Fabricated ------------ Nothing Alien Tech Used ----------------- None Achievements -------------- None Challenges ------------ None Game ------ Seed NavigationMakeshiftDiverter Manual? 0 Play Time 00:12:46 Cumulative 10.8 hours Start 2024.05.23 @ 20:38:03 End 2024.05.23 @ 20:49:45 Sessions 1 Manual Loads 0 Difficulty Rogue Special Mode None Game No. 25 Rogue 25 Adventurer 0 Explorer 0 Win Type - Total 0 Types 0/0/0/0/0/0/0/0/0 Lore% 13 Gallery% 19 Achievement% 14 Wizard Run 0 Options --------- Layout 1 ASCII 0 Keyboard 0 Movement Mouse Keybinds 0 Fullscreen 2 Font 24/Smallcaps Map View 50x35 Zoom Use 0% Tactical HUD 1 Map Filters NONE Filters NONE Steam 1 RUN: 5dae2bda-db5b-4eee-867d-c7acb7fecbee